bitfinex-derivatives/quotes_BTCF0:USTF0_20251002
["timestamp","ask_amount","ask_price","bid_price","bid_amount"]
[1759440597498,0.7689247,120510.0,120500.0,0.4788194]
[1759440597894,1.08834428,120510.0,120500.0,0.4788194]
[1759440600995,1.08834428,120510.0,120500.0,0.1180194]
[1759440601400,1.40776386,120510.0,120500.0,0.0961594]
[1759440602701,1.43069513,120510.0,120500.0,0.0961594]
[1759440603798,1.41125043,120510.0,120500.0,0.0961594]
[1759440604194,1.77205043,120510.0,120500.0,0.0961594]
[1759440607403,1.74911916,120510.0,120500.0,0.0961594]
[1759440610097,1.74911916,120510.0,120500.0,0.1182394]
[1759440611003,0.0829294,120500.0,120490.0,0.09636224]
[1759440611197,0.72176856,120500.0,120490.0,0.11844224]
[1759440612302,1.08256856,120500.0,120490.0,0.11844224]
[1759440613702,1.80198814,120500.0,120490.0,7.094e-05]
[1759440613901,1.82156358,120500.0,120490.0,0.08300724]
[1759440616800,2.251544,120500.0,120490.0,0.08300724]
[1759440617201,1.502144,120500.0,120490.0,0.08300724]
[1759440617402,2.251544,120500.0,120490.0,0.08300724]
[1759440618897,2.251544,120500.0,120490.0,0.09629724]
[1759440620600,2.24158715,120500.0,120490.0,0.09629724]
[1759440623302,1.60274799,120500.0,120490.0,0.09629724]
[1759440623504,2.24158715,120500.0,120490.0,0.09629724]
[1759440628010,2.56100673,120500.0,120490.0,0.09629724]
[1759440634310,1.92230096,120500.0,120490.0,0.09629724]
[1759440635612,1.83189683,120500.0,120490.0,7.094e-05]
[1759440637609,2.23189683,120500.0,120490.0,7.094e-05]
[1759440642321,1.83189683,120500.0,120490.0,7.094e-05]
[1759440653021,1.83193683,120500.0,120490.0,7.094e-05]
[1759440655620,1.08249683,120500.0,120490.0,7.094e-05]
[1759440655824,1.83193683,120500.0,120490.0,7.094e-05]
[1759440661116,0.0829432,120480.0,120470.0,0.19404629]
[1759440661322,1.84150091,120480.0,120470.0,0.19404629]
[1759440662018,1.84157693,120480.0,120470.0,0.19404629]
[1759440664037,1.8224073,120480.0,120470.0,0.19404629]
[1759440664420,1.8307137,120480.0,120470.0,0.19404629]
[1759440665630,1.89686258,120480.0,120470.0,0.19404629]
[1759440666633,1.89686258,120480.0,120470.0,0.17139629]
[1759440666831,1.89686258,120480.0,120470.0,0.19404629]
[1759440667231,1.89686258,120480.0,120470.0,0.17139629]
[1759440667431,1.89686258,120480.0,120470.0,0.0967587]
[1759440668933,1.89686258,120480.0,120470.0,0.1194087]
[1759440669328,1.13911618,120480.0,120470.0,0.1194087]
[1759440669531,1.88855618,120480.0,120470.0,0.1194087]
[1759440670435,1.89700996,120480.0,120470.0,0.1194087]
[1759440670827,1.14756996,120480.0,120470.0,0.1194087]
[1759440671032,1.89700996,120480.0,120470.0,0.1194087]
[1759440674937,1.89700996,120480.0,120470.0,0.0967587]
[1759440676635,1.89700996,120480.0,120470.0,0.1194087]
[1759440677236,1.89700996,120480.0,120470.0,0.0967587]
[1759440681236,2.57736293,120480.0,120460.0,0.096242]
[1759440681439,1.08285604,120470.0,120460.0,0.01329]
[1759440681643,1.10218096,120470.0,120460.0,0.01329]
[1759440681832,0.78262799,120470.0,120460.0,0.01329]
[1759440682945,0.082957,120460.0,120450.0,0.01334]
[1759440683139,1.83226294,120460.0,120450.0,0.01334]
[1759440684546,1.83226294,120460.0,120450.0,0.0963038]
[1759440685145,1.08286294,120460.0,120450.0,0.0963038]
[1759440685346,0.0829638,120450.0,120440.0,0.117786]
[1759440685552,1.07290919,120450.0,120440.0,0.117786]
[1759440685746,1.073002,120450.0,120440.0,0.117786]
[1759440687546,1.073002,120450.0,120440.0,0.082966]
[1759440687948,1.073002,120450.0,120440.0,0.096596]
[1759440688348,1.073002,120450.0,120440.0,0.117826]
[1759440690754,1.822482,120450.0,120440.0,0.117826]
[1759440691957,1.073002,120450.0,120440.0,0.117826]
[1759440692157,1.822482,120450.0,120440.0,0.117826]
[1759440692558,1.073002,120450.0,120440.0,0.096596]
[1759440692857,1.822482,120450.0,120440.0,0.096596]
[1759440694258,1.073002,120450.0,120440.0,0.096596]
[1759440694459,1.822482,120450.0,120440.0,0.096596]
[1759440694659,1.073002,120450.0,120440.0,0.117826]
[1759440694852,1.822482,120450.0,120440.0,0.117826]
[1759440695558,1.073002,120450.0,120440.0,0.117826]
[1759440695761,1.822482,120450.0,120440.0,0.117826]
[1759440696255,1.82303848,120450.0,120440.0,0.117826]
[1759440696557,0.0829707,120440.0,120430.0,0.03493]
[1759440696759,1.40326433,120440.0,120430.0,0.03493]
[1759440696960,1.42661888,120440.0,120430.0,0.03493]
[1759440697460,1.42661888,120440.0,120430.0,0.1179076]
[1759440698060,1.49458189,120440.0,120430.0,0.03493]
[1759440698661,1.49458189,120440.0,120430.0,0.1179076]
[1759440699560,1.50295253,120440.0,120430.0,0.1179076]
[1759440699756,1.50295253,120440.0,120430.0,0.03493]
[1759440701449,1.50295253,120440.0,120430.0,0.0137]
[1759440702762,2.25251253,120440.0,120430.0,0.0137]
[1759440704765,1.50295253,120440.0,120430.0,0.03493]
[1759440704966,0.0829776,120430.0,120420.0,0.1179839]
[1759440705166,1.08344002,120430.0,120420.0,0.1179839]
[1759440708062,1.83300002,120430.0,120420.0,0.1179839]
[1759440708663,0.0829914,120410.0,120400.0,0.03486]
[1759440708857,1.08345382,120410.0,120400.0,0.1178583]
[1759440709061,1.83393382,120410.0,120400.0,0.1178583]
[1759440709561,1.83402594,120410.0,120400.0,0.1178583]
[1759440709763,1.08354594,120410.0,120400.0,0.1178583]
[1759440709966,1.83402594,120410.0,120400.0,0.1178583]
[1759440712769,1.08354594,120410.0,120400.0,0.1178583]
[1759440712971,1.19440352,120410.0,120400.0,0.1178583]
[1759440713171,1.83406594,120410.0,120400.0,0.1178583]
[1759440715876,1.83406594,120410.0,120400.0,0.01363]
[1759440716674,1.83406594,120410.0,120400.0,0.03612]
[1759440717074,1.85742267,120410.0,120400.0,0.03612]
[1759440717275,1.85742267,120410.0,120400.0,0.01363]
[1759440717976,2.21822267,120410.0,120400.0,0.03612]
[1759440719878,2.21822267,120410.0,120400.0,0.01363]
[1759440722581,2.21822267,120410.0,120390.0,0.1191206]
[1759440722582,0.0829983,120400.0,120390.0,0.1191206]
[1759440722774,1.10681745,120400.0,120390.0,0.1191206]
[1759440723683,0.46715503,120400.0,120390.0,0.1191206]
[1759440723877,1.10681745,120400.0,120390.0,0.1191206]
[1759440724983,1.10681745,120400.0,120390.0,0.03612]
[1759440726590,1.17305012,120400.0,120390.0,0.03612]
[1759440727984,1.49288133,120400.0,120390.0,0.03612]
[1759440728184,1.50101967,120400.0,120390.0,0.03612]
[1759440728884,1.49288133,120400.0,120390.0,0.03612]
[1759440729388,1.4695246,120400.0,120390.0,0.03612]
[1759440731390,1.47763725,120400.0,120390.0,0.03612]
[1759440732788,1.15780604,120400.0,120390.0,0.03612]
[1759440732988,0.08309042,120410.0,120400.0,0.03605]
[1759440733291,1.17627214,120410.0,120400.0,0.03605]
[1759440733489,0.42583214,120410.0,120400.0,0.03605]
[1759440733881,1.17623214,120410.0,120400.0,0.03605]
[1759440734083,0.85640093,120410.0,120400.0,0.1190483]
[1759440734283,1.17623214,120410.0,120400.0,0.1190483]
[1759440735590,0.42583214,120410.0,120400.0,0.1190483]
[1759440735793,1.17623214,120410.0,120400.0,0.1190483]
[1759440737894,1.17623214,120410.0,120400.0,0.12746689]
[1759440738188,1.17619214,120410.0,120400.0,0.12746689]
[1759440738893,1.17611214,120410.0,120400.0,0.12746689]
[1759440740081,0.02300263,120410.0,120400.0,0.8080981]
[1759440740393,0.40291473,120410.0,120400.0,0.52746689]
[1759440741091,0.72274594,120410.0,120400.0,0.52746689]
[1759440741686,1.10611782,120410.0,120400.0,0.1190483]
[1759440742798,1.08354594,120410.0,120400.0,0.1190483]
[1759440755895,0.44388352,120410.0,120400.0,0.1190483]
[1759440756102,1.83422594,120410.0,120400.0,0.1190483]
[1759440756302,1.51457456,120410.0,120400.0,0.1190483]
[1759440762809,1.15377456,120410.0,120400.0,0.1190483]
[1759440763009,1.51457456,120410.0,120400.0,0.1190483]
[1759440767008,1.19456352,120410.0,120400.0,0.1190483]
[1759440767209,1.51457456,120410.0,120400.0,0.1190483]
[1759440767910,1.50461028,120410.0,120400.0,0.1190483]
[1759440768909,1.50468277,120410.0,120400.0,0.1190483]
[1759440769304,1.50468277,120410.0,120400.0,0.0965583]
[1759440769611,1.50468277,120410.0,120400.0,0.1187183]
[1759440775709,0.75400277,120410.0,120400.0,0.1187183]
[1759440776011,1.50416277,120410.0,120400.0,0.1187183]
[1759440776913,0.75400277,120410.0,120400.0,0.1187183]
[1759440777215,1.50412277,120410.0,120400.0,0.1187183]
[1759440780214,0.75400277,120410.0,120400.0,0.1187183]
[1759440780415,1.50408277,120410.0,120400.0,0.1187183]
[1759440780612,1.48062526,120410.0,120400.0,0.1187183]
[1759440782310,1.48062526,120410.0,120400.0,0.0965583]
[1759440783717,1.48062526,120410.0,120400.0,0.1182083]
[1759440785717,1.48062526,120410.0,120400.0,0.0965583]
[1759440792611,0.73054526,120410.0,120400.0,0.0965583]
[1759440792812,1.48046526,120410.0,120400.0,0.1182083]
[1759440793016,1.48046526,120410.0,120400.0,0.0965583]
[1759440795025,0.0829983,120400.0,120390.0,0.0966352]
[1759440795318,1.08382038,120400.0,120390.0,0.0966352]
[1759440795523,0.76380934,120400.0,120390.0,0.0966352]
[1759440796826,1.08382038,120400.0,120390.0,0.0966352]
[1759440797725,0.0830052,120390.0,120380.0,0.13481789]
[1759440798023,1.83374728,120390.0,120380.0,0.13481789]
[1759440802628,1.8420882,120390.0,120380.0,0.13481789]
[1759440802831,1.8420882,120390.0,120380.0,0.05181089]
[1759440807429,1.8420882,120390.0,120380.0,0.03016089]
[1759440807625,0.0830121,120380.0,120370.0,0.12712845]
[1759440807830,0.76389563,120380.0,120370.0,0.12712845]
[1759440809124,1.51389563,120380.0,120370.0,0.12712845]
[1759440812530,1.51389563,120380.0,120370.0,0.10507445]
[1759440812733,1.51393563,120380.0,120370.0,0.096649]
[1759440812936,0.76389563,120380.0,120370.0,0.096649]
[1759440813236,1.51393563,120380.0,120370.0,0.096649]
[1759440813536,1.51393563,120380.0,120370.0,0.118709]
[1759440814538,0.083019,120370.0,120360.0,0.03472]
[1759440814739,0.76383004,120370.0,120360.0,0.01266]
[1759440814939,0.0830259,120360.0,120350.0,0.11782077]
[1759440815237,1.83388798,120360.0,120350.0,0.11782077]
[1759440816133,1.83388798,120360.0,120350.0,0.12603271]
[1759440816632,1.84211069,120360.0,120350.0,0.03479127]
[1759440818442,1.84261955,120360.0,120350.0,0.03479127]
[1759440819934,1.86214708,120360.0,120350.0,0.03479127]
[1759440820136,2.18241255,120360.0,120350.0,0.03479127]
[1759440820336,2.18241255,120360.0,120350.0,7.127e-05]
[1759440821034,1.83237255,120360.0,120350.0,7.127e-05]
[1759440821231,2.58265255,120360.0,120350.0,7.127e-05]
[1759440821641,1.83237255,120360.0,120350.0,7.127e-05]
[1759440821945,2.58269255,120360.0,120350.0,0.01388127]
[1759440822338,2.18269255,120360.0,120350.0,0.01388127]
[1759440822644,2.24945866,120360.0,120350.0,0.01388127]
[1759440828340,1.49913866,120360.0,120350.0,0.01388127]
[1759440828542,2.24937866,120360.0,120350.0,0.01388127]
[1759440832348,2.24937866,120360.0,120350.0,0.03594127]
[1759440833848,2.27197916,120360.0,120350.0,0.03594127]
[1759440834444,2.27197916,120360.0,120350.0,0.01388127]
[1759440837052,1.52173916,120360.0,120350.0,0.01388127]
[1759440837252,2.27197916,120360.0,120350.0,0.01388127]
[1759440838956,2.27197916,120360.0,120350.0,0.03571127]
[1759440840155,1.52173916,120360.0,120350.0,0.03571127]
[1759440840360,2.27197916,120360.0,120350.0,0.03571127]
[1759440842160,1.52173916,120360.0,120350.0,0.03571127]
[1759440842358,2.27201916,120360.0,120350.0,7.127e-05]
[1759440842550,2.27197916,120360.0,120350.0,7.127e-05]
[1759440843959,1.52173916,120360.0,120350.0,7.127e-05]
[1759440844161,2.27201916,120360.0,120350.0,7.127e-05]
[1759440845662,2.27201916,120360.0,120350.0,0.01317127]
[1759440850063,1.52173916,120360.0,120350.0,0.01317127]
[1759440850263,2.27197916,120360.0,120350.0,0.01317127]
[1759440851679,1.52173916,120360.0,120350.0,0.03500127]
[1759440851866,2.27197916,120360.0,120350.0,0.03500127]
[1759440852373,1.52173916,120360.0,120350.0,0.11803407]
[1759440852576,2.27197916,120360.0,120350.0,0.11803407]
[1759440853260,2.27197916,120360.0,120350.0,7.127e-05]
[1759440859370,0.0830397,120340.0,120310.0,0.59358971]
[1759440859671,1.40464991,120320.0,120310.0,0.1179904]
[1759440859872,1.08438444,120320.0,120310.0,0.1179904]
[1759440860575,1.08444692,120320.0,120310.0,0.1179904]
[1759440862167,1.07447553,120320.0,120310.0,0.1179904]
[1759440862373,1.07447553,120320.0,120310.0,0.19262799]
[1759440862569,1.07447553,120320.0,120310.0,0.1179904]
[1759440862972,1.07447553,120320.0,120310.0,0.03493]
[1759440863376,1.394741,120320.0,120310.0,0.03493]
[1759440864270,1.40315019,120320.0,120310.0,0.03493]
[1759440864668,1.47114096,120320.0,120310.0,0.03493]
[1759440867978,2.22266096,120320.0,120310.0,0.03493]
[1759440871883,2.22266096,120320.0,120310.0,0.0131]
[1759440872078,2.22266096,120320.0,120310.0,0.03477]
[1759440872280,1.26186455,120320.0,120310.0,0.03477]
[1759440872478,1.90239549,120320.0,120310.0,0.03477]
[1759440872879,2.22266096,120320.0,120310.0,0.03477]
[1759440875886,0.0830604,120310.0,120300.0,0.03477]
[1759440876087,1.08439134,120310.0,120300.0,0.03477]
[1759440876391,1.08439134,120310.0,120300.0,0.43477]
[1759440876985,0.76412587,120310.0,120300.0,0.43477]
[1759440877185,1.51548587,120310.0,120300.0,0.43477]
[1759440880182,1.51571482,120310.0,120300.0,0.43477]
[1759440880387,0.76435482,120310.0,120300.0,0.43477]
[1759440880578,1.51563482,120310.0,120300.0,0.43477]
[1759440881289,1.51563482,120310.0,120300.0,0.5178373]
[1759440882478,1.51563482,120310.0,120300.0,0.03477]
[1759440894201,1.49215684,120310.0,120300.0,0.03477]
[1759440901104,0.0830673,120300.0,120290.0,0.04337769]
[1759440901307,0.40356172,120300.0,120290.0,0.04337769]
[1759440904205,0.76436172,120300.0,120290.0,0.04337769]
[1759440904504,0.76436172,120300.0,120290.0,0.435]
[1759440906602,1.08485614,120300.0,120290.0,0.435]
[1759440906803,0.76436172,120300.0,120290.0,0.435]
[1759440907103,1.08485614,120300.0,120290.0,0.435]
[1759440907303,0.76436172,120300.0,120290.0,0.435]
[1759440907500,0.75085637,120300.0,120290.0,0.435]
[1759440907707,0.74088319,120300.0,120290.0,0.435]
[1759440911217,0.74088319,120300.0,120290.0,0.50963759]
[1759440911516,0.74088319,120300.0,120290.0,0.435]
[1759440915815,0.74912347,120300.0,120290.0,0.435]
[1759440916722,0.74088319,120300.0,120290.0,0.435]
[1759440916922,0.42038877,120300.0,120290.0,0.435]
[1759440917222,0.74088319,120300.0,120290.0,0.435]
[1759440917522,0.72737775,120300.0,120290.0,0.435]
[1759440918923,0.73580631,120300.0,120290.0,0.435]
[1759440919422,0.73580631,120300.0,120290.0,0.035]
[1759440921423,0.72737775,120300.0,120290.0,0.035]
[1759440924928,1.47805775,120300.0,120290.0,0.035]
[1759440927628,1.15756333,120300.0,120290.0,0.035]
[1759440927828,1.47805775,120300.0,120290.0,0.035]
[1759440930726,0.0830742,120290.0,120280.0,0.21831533]
[1759440930937,0.3900629,120290.0,120280.0,0.21831553]
[1759440931432,0.3900629,120290.0,120280.0,0.13523443]
[1759440931633,0.3900629,120290.0,120280.0,0.21831553]
[1759440932133,0.3900629,120290.0,120280.0,0.14367794]
[1759440933537,0.74088932,120290.0,120280.0,0.03519]
[1759440933738,0.74088932,120290.0,120280.0,0.10982759]
[1759440933938,0.74088932,120290.0,120280.0,0.03519]
[1759440934137,0.74088932,120290.0,120280.0,0.0131]
[1759440934344,0.0830811,120280.0,120270.0,0.11036759]
[1759440934539,1.51561552,120280.0,120270.0,0.11036759]
[1759440934841,1.51561552,120280.0,120270.0,0.08827759]
[1759440935343,1.51561552,120280.0,120270.0,0.01364]
[1759440935729,1.52386444,120280.0,120270.0,0.01364]
[1759440937538,0.083088,120270.0,120260.0,0.0831903]
[1759440937742,0.40358242,120270.0,120260.0,0.1191603]
[1759440938046,1.15562242,120270.0,120260.0,0.1191603]
[1759440939044,1.47611684,120270.0,120260.0,0.0360677]
[1759440940142,1.47611684,120270.0,120260.0,0.0139777]
[1759440940642,0.835128,120270.0,120260.0,0.0360677]
[1759440940838,1.47611684,120270.0,120260.0,0.0360677]
[1759440941041,1.47611684,120270.0,120260.0,0.0139777]
[1759440942345,1.4766455,120270.0,120260.0,0.0139777]
[1759440942645,1.4766455,120270.0,120260.0,9.77e-05]
[1759440944442,1.8961231,120270.0,120260.0,9.77e-05]
[1759440944844,2.2569231,120270.0,120260.0,9.77e-05]
[1759440947140,2.2374455,120270.0,120260.0,9.77e-05]
[1759440948250,1.91696675,120270.0,120260.0,0.0360677]
[1759440948450,2.2377255,120270.0,120260.0,0.0360677]
[1759440949051,2.2377255,120270.0,120260.0,0.0139777]
[1759440950450,2.2377255,120270.0,120260.0,0.0360677]
[1759440950846,2.2377255,120270.0,120260.0,9.77e-05]
[1759440951040,1.504411,120270.0,120260.0,9.77e-05]
[1759440951248,2.256651,120270.0,120260.0,0.0139777]
[1759440951649,2.256931,120270.0,120260.0,0.0360677]
[1759440952452,2.256931,120270.0,120260.0,0.0139777]
[1759440953044,1.504411,120270.0,120260.0,0.0139777]
[1759440953245,2.256971,120270.0,120260.0,0.0139777]
[1759440954846,1.504411,120270.0,120260.0,0.0139777]
[1759440957259,2.256891,120270.0,120260.0,0.0360677]
[1759440958449,1.504411,120270.0,120260.0,0.0360677]
[1759440958645,2.256891,120270.0,120260.0,0.0360677]
[1759440959760,1.504411,120270.0,120260.0,0.0360677]
[1759440959960,1.53609225,120270.0,120260.0,0.1191626]
[1759440960355,0.78365225,120270.0,120260.0,0.5191626]
[1759440960559,0.78365225,120270.0,120260.0,1.5214801]
[1759440960560,0.0190055,120270.0,120260.0,1.5214801]
[1759440961061,0.0190055,120270.0,120260.0,1.20072135]
[1759440961250,0.33976425,120270.0,120260.0,1.20072135]
[1759440961956,0.33976425,120270.0,120260.0,0.8799626]
[1759440962157,0.33976425,120270.0,120260.0,1.20072135]
[1759440966360,0.0190055,120270.0,120260.0,1.20072135]
[1759440966562,0.33976425,120270.0,120260.0,1.20072135]
[1759440967356,0.31628175,120270.0,120260.0,0.8799626]
[1759440967661,0.31628175,120270.0,120260.0,1.20072135]
[1759440968056,1.07303875,120280.0,120270.0,0.119638]
[1759440968256,1.3937975,120280.0,120270.0,0.480438]
[1759440970266,1.3937975,120280.0,120270.0,0.54728726]
[1759440970665,0.32085905,120290.0,120280.0,0.1196311]
[1759440970865,1.15617325,120290.0,120280.0,0.1196311]
[1759440971164,1.07309905,120290.0,120280.0,0.1196311]
[1759440971666,0.32085905,120290.0,120280.0,0.1196311]
[1759440971867,1.07301905,120290.0,120280.0,0.1196311]
[1759440972061,1.07301905,120290.0,120280.0,0.44038985]
[1759440972364,0.32085905,120290.0,120280.0,0.44038985]
[1759440973666,0.32085905,120290.0,120280.0,0.80118985]
[1759440974568,0.32085905,120290.0,120280.0,0.44038985]
[1759440974865,0.32085905,120290.0,120280.0,0.80118985]
[1759440975066,0.4438535,120320.0,120310.0,0.1196104]
[1759440975257,1.43363875,120320.0,120310.0,0.1196104]
[1759440975668,0.76461225,120320.0,120310.0,0.1196104]
[1759440976154,0.68160221,120320.0,120310.0,0.1196104]
[1759440976355,0.32080221,120320.0,120310.0,0.4804104]
[1759440976556,4.346e-05,120320.0,120310.0,0.80116915]
[1759440976756,0.32080221,120320.0,120310.0,0.80116915]
[1759440977560,4.346e-05,120320.0,120310.0,1.20116915]
[1759440977867,0.3402344,120340.0,120330.0,0.1195966]
[1759440978068,0.3621055,120340.0,120330.0,0.44035535]
[1759440978462,0.3402344,120340.0,120330.0,0.44035535]
[1759440978663,0.3402344,120340.0,120330.0,0.1195966]
[1759440979470,0.68155875,120350.0,120340.0,0.1195897]
[1759440979667,0.3608,120350.0,120340.0,0.1195897]
[1759440979868,0.68155875,120350.0,120340.0,0.1195897]
[1759440980165,0.32075875,120350.0,120340.0,0.1195897]
[1759440980369,1.1132,120360.0,120350.0,0.1195828]
[1759440980570,0.32075875,120360.0,120350.0,0.1195828]
[1759440981464,0.32075875,120360.0,120350.0,0.44034155]
[1759440981670,0.3608,120370.0,120360.0,0.1195759]
[1759440981870,0.32075875,120370.0,120360.0,0.1195759]
[1759440982472,0.32075875,120370.0,120360.0,0.4803759]
[1759440983370,1.42820562,120380.0,120370.0,0.119569]
[1759440983768,0.67584562,120380.0,120370.0,0.119569]
[1759440984275,0.67584562,120380.0,120370.0,0.480369]
[1759440984479,0.33973755,120380.0,120370.0,0.480369]
[1759440984671,0.32075875,120380.0,120370.0,0.480369]
[1759440984876,0.32075875,120390.0,120380.0,0.1186921]
[1759440985075,0.32075875,120390.0,120380.0,0.4794921]
[1759440985376,0.32075875,120390.0,120380.0,0.80025085]
[1759440985978,1.07307875,120400.0,120390.0,0.1190952]
[1759440985979,0.75232,120400.0,120390.0,0.1190952]
[1759440986182,0.6415175,120400.0,120390.0,0.1190952]
[1759440986980,0.6415175,120400.0,120390.0,0.4798952]
[1759440987382,0.32075875,120400.0,120390.0,0.4798952]
[1759440987682,0.6415175,120400.0,120390.0,0.4798952]
[1759440988188,0.32075875,120400.0,120390.0,0.4798952]
[1759440988694,0.6415175,120400.0,120390.0,0.4798952]
[1759440988885,0.77153725,120410.0,120400.0,0.1190883]
[1759440989186,1.092296,120410.0,120400.0,0.1190883]
[1759440989582,0.68155875,120410.0,120400.0,0.1190883]
[1759440990079,0.68155875,120410.0,120400.0,0.03609]
[1759440990785,0.68155875,120410.0,120400.0,0.1190883]
[1759440991279,0.76455015,120410.0,120400.0,0.1190883]
[1759440992188,1.4853089,120410.0,120380.0,0.03533]
[1759440992381,1.4853089,120410.0,120380.0,0.01268]
[1759440992382,0.68155875,120390.0,120380.0,0.01268]
[1759440992582,0.68155875,120390.0,120380.0,0.03533]
[1759440994887,0.68155875,120390.0,120380.0,0.1183421]
[1759440999687,0.68155875,120390.0,120380.0,0.03533]
[1759441004295,0.3608,120390.0,120380.0,0.03533]
[1759441008297,0.38251728,120390.0,120380.0,0.03533]
[1759441008603,0.35083387,120390.0,120380.0,0.03533]
[1759441009302,0.37256375,120390.0,120380.0,0.03533]
[1759441011099,0.69265133,120390.0,120380.0,0.03533]
[1759441011698,0.0830121,120380.0,120370.0,0.01392]
[1759441011889,0.083019,120370.0,120360.0,0.03609]
[1759441012092,0.76390658,120370.0,120360.0,0.03609]
[1759441015004,0.78564604,120370.0,120360.0,0.03609]
[1759441016604,0.46555846,120370.0,120360.0,0.03609]
[1759441016800,0.78564604,120370.0,120360.0,0.03609]
[1759441018396,0.42484604,120370.0,120360.0,0.03609]
[1759441018592,0.78564604,120370.0,120360.0,0.03609]
[1759441019201,0.78564604,120370.0,120350.0,0.07858459]
[1759441019202,0.78564604,120370.0,120350.0,0.10116459]
[1759441019504,0.68088758,120360.0,120350.0,0.10116459]
[1759441019705,0.70262704,120360.0,120350.0,0.10116459]
[1759441020606,1.45490704,120360.0,120350.0,0.10116459]
[1759441020995,1.45490704,120360.0,120350.0,0.01352008]
[1759441021907,1.85490704,120360.0,120350.0,8.008e-05]
[1759441022110,1.84493858,120360.0,120350.0,8.008e-05]
[1759441023110,1.09265858,120360.0,120350.0,8.008e-05]
[1759441023407,1.84521858,120360.0,120350.0,8.008e-05]
[1759441023608,1.86748454,120360.0,120350.0,8.008e-05]
[1759441024212,2.18757212,120360.0,120350.0,8.008e-05]
[1759441024406,2.16530616,120360.0,120350.0,8.008e-05]
[1759441025703,1.41274616,120360.0,120350.0,8.008e-05]
[1759441025905,2.16522616,120360.0,120350.0,8.008e-05]
[1759441029609,2.1434867,120360.0,120350.0,8.008e-05]
[1759441029907,2.23258641,120360.0,120350.0,8.008e-05]
[1759441031213,2.21097016,120360.0,120350.0,8.008e-05]
[1759441032015,2.23258208,120360.0,120350.0,8.008e-05]
[1759441032311,2.21097016,120360.0,120350.0,8.008e-05]
[1759441033709,1.45849016,120360.0,120350.0,8.008e-05]
[1759441033910,2.21081016,120360.0,120350.0,8.008e-05]
[1759441034412,1.89072258,120360.0,120350.0,8.008e-05]
[1759441035315,2.21081016,120360.0,120350.0,8.008e-05]
[1759441036317,1.45849016,120360.0,120350.0,8.008e-05]
[1759441036506,0.818315,120360.0,120350.0,8.008e-05]
[1759441036712,1.570475,120360.0,120350.0,8.008e-05]
[1759441036913,2.21065016,120360.0,120350.0,8.008e-05]
[1759441038119,1.45849016,120360.0,120350.0,8.008e-05]
[1759441038418,2.21065016,120360.0,120350.0,8.008e-05]
[1759441040020,1.89056258,120360.0,120350.0,8.008e-05]
[1759441041515,2.21065016,120360.0,120350.0,8.008e-05]
[1759441043820,2.23228359,120360.0,120330.0,0.01344]
[1759441044123,0.68088758,120340.0,120320.0,0.03559]
[1759441044417,1.1134,120330.0,120320.0,0.01301]
[1759441044725,1.75357516,120330.0,120320.0,0.01301]
[1759441045021,1.75364114,120330.0,120320.0,0.01301]
[1759441046922,1.76197836,120330.0,120320.0,0.01301]
[1759441047816,1.76197836,120330.0,120310.0,0.01301]
[1759441047817,0.0830535,120320.0,120310.0,0.03558]
[1759441048024,0.40314108,120320.0,120310.0,0.03558]
[1759441048822,0.76394108,120320.0,120310.0,0.03558]
[1759441050616,1.51662108,120320.0,120310.0,0.03558]
[1759441050814,0.76394108,120320.0,120310.0,0.03558]
[1759441051111,1.51658108,120320.0,120310.0,0.03558]
[1759441051920,1.51662108,120320.0,120310.0,0.03558]
[1759441052725,0.76394108,120320.0,120310.0,0.03558]
[1759441052925,1.51654108,120320.0,120310.0,0.03558]
[1759441054427,0.76394108,120320.0,120310.0,0.03558]
[1759441054626,1.51650108,120320.0,120310.0,0.03558]
[1759441057525,6.598e-05,120330.0,120310.0,1.19952798]
[1759441057730,0.83555788,120330.0,120320.0,0.03609]
[1759441058030,0.08311788,120330.0,120320.0,0.13618608]
[1759441058434,0.83579788,120330.0,120320.0,0.13618608]
[1759441059032,0.08311788,120330.0,120320.0,0.13618608]
[1759441059234,0.83575788,120330.0,120320.0,0.13618608]
[1759441062939,0.83563788,120330.0,120320.0,0.13618608]
[1759441063940,0.82566733,120330.0,120320.0,0.13618608]
[1759441066245,1.14603607,120330.0,120320.0,0.45655482]
[1759441067239,1.14603607,120330.0,120320.0,0.13618608]
[1759441071147,1.14603607,120330.0,120320.0,0.45655482]
[1759441071348,1.14603607,120330.0,120320.0,0.81735482]
[1759441073346,1.14603607,120330.0,120320.0,0.87700691]
[1759441076855,1.14603607,120330.0,120320.0,0.51620691]
[1759441077052,1.14603607,120330.0,120320.0,0.19583817]
[1759441078159,0.82566733,120330.0,120320.0,0.19583817]
[1759441078455,1.14603607,120330.0,120320.0,0.19583817]
[1759441078960,1.14603607,120330.0,120320.0,0.13618608]
[1759441080248,1.14603607,120330.0,120320.0,0.19583817]
[1759441080549,0.0830535,120320.0,120310.0,0.05965209]
[1759441080755,0.8438535,120320.0,120310.0,0.02465209]
[1759441081050,0.8438535,120320.0,120290.0,0.01301]
[1759441081051,1.82689125,120320.0,120290.0,0.01301]
[1759441081357,0.64073748,120300.0,120290.0,0.01301]
[1759441083753,1.00153748,120300.0,120290.0,0.01301]
[1759441083953,1.08460478,120300.0,120290.0,0.01301]
[1759441084361,1.08460478,120300.0,120290.0,0.03411]
[1759441086356,1.09302197,120300.0,120290.0,0.03411]
[1759441086868,0.4438673,120300.0,120290.0,0.03411]
[1759441087162,1.08460478,120300.0,120290.0,0.03411]
[1759441087674,1.09298133,120300.0,120290.0,0.01301]
[1759441088361,1.08460478,120300.0,120290.0,0.03411]
[1759441088559,1.83716478,120300.0,120290.0,0.03411]
[1759441089266,1.83716478,120300.0,120290.0,0.01301]
[1759441089466,1.08460478,120300.0,120290.0,0.01301]
[1759441089666,1.83708478,120300.0,120290.0,0.01301]
[1759441090470,1.83708478,120300.0,120290.0,0.03411]
[1759441091360,1.08460478,120300.0,120290.0,0.03411]
[1759441091561,0.46317824,120310.0,120300.0,0.1171273]
[1759441091761,1.17522698,120310.0,120300.0,0.43749604]
[1759441091961,1.17522698,120310.0,120300.0,0.1171273]
[1759441092661,1.17522698,120310.0,120300.0,0.12554698]
[1759441093166,0.4438572,120320.0,120310.0,0.0830604]
[1759441093368,0.4438466,120330.0,120320.0,0.03406]
[1759441093567,1.53948102,120330.0,120320.0,0.03406]
[1759441096166,1.85984976,120330.0,120320.0,0.03406]
[1759441096468,1.83738408,120330.0,120320.0,0.03406]
[1759441097265,1.83738408,120330.0,120320.0,0.1171135]
[1759441098076,1.83738408,120330.0,120320.0,0.03406]
[1759441098671,1.47658408,120330.0,120320.0,0.03406]
[1759441098872,1.83738408,120330.0,120320.0,0.03406]
[1759441099368,1.1966466,120330.0,120320.0,0.03406]
[1759441099574,1.83738408,120330.0,120320.0,0.03406]
[1759441100671,2.23738408,120330.0,120320.0,0.01296]
[1759441100878,2.23738408,120330.0,120310.0,0.01296]
[1759441101075,1.00153748,120320.0,120310.0,0.01296]